Cogmind - Beta 13 @@@ ROGUE MODE // 2024.07.04 @ 23:20:40 Player: Jetpackmatt9 Result: Destroyed by G-47 Trooper with Particle Gun Performance ------------- Evolutions (2) 1000 Regions Visited (4) 800 Robots Destroyed (22) 110 Value Destroyed (360) 360 Prototype IDs (2) 40 Alien Tech Used (0) 0 Bonus (0) 0 TOTAL SCORE: 2310 Bonus ------- None Cogmind --------- Core Integrity 0/550 Matter 239/300 Energy 37/100 System Corruption 0% Temperature Cool (35) Movement Hovering (42) Location -8/Materials Parts ------- > --- POWER (1) -------- (None) > --- PROPULSION (5) --- Aerolev Unit Aerolev Unit Aerolev Unit > --- UTILITY (3) ------ (None) > --- WEAPON (2) ------- Advanced Beam Rifle > --- INVENTORY (5) ---- (None) Peak State ------------ > --- POWER ------------ (None) > --- PROPULSION ------- Aerolev Unit Aerolev Unit Aerolev Unit > --- UTILITY ---------- (None) > --- WEAPON ----------- Advanced Beam Rifle > --- INVENTORY -------- (None) [Rating: 16] Favorites ----------- Power Ion Engine Engine Ion Engine Propulsion Flight Unit Wheel Wheel Hover Unit Aerolev Unit Flight Unit Flight Unit Utility Sensor Array Device Sensor Array Storage Small Storage Unit Weapon Light Assault Rifle Energy Gun Advanced Beam Rifle Ballistic Gun Light Assault Rifle Impact Weapon Maul Build | -11 -10 -10 -9 -8 ------- Run | Yrd Mat Min Mat Mat Slots Evolved 4 | . . . 2 2 Power . | . . . . . Propulsion 3 | . . . 1 2 Utility 1 | . . . 1 . Weapon . | . . . . . Parts Attached 43 | 7 8 1 14 13 Power 8 | 2 1 . 4 1 Engine 8 | 2 1 . 4 1 Core . | . . . . . Reactor . | . . . . . Propulsion 19 | 2 2 1 6 8 Treads . | . . . . . Leg . | . . . . . Wheel 5 | 2 2 1 . . Hover 3 | . . . . 3 Flight 11 | . . . 6 5 Utility 7 | 1 3 . 2 1 Device 6 | . 3 . 2 1 Storage 1 | 1 . . . . Processor . | . . . . . Hackware . | . . . . . Protection . | . . . . . Artifact . | . . . . . Weapon 9 | 2 2 . 2 3 Energy Gun 1 | . . . . 1 Energy Cannon . | . . . . . Ballistic Gun 7 | 2 2 . 1 2 Ballistic Cannon . | . . . . . Launcher . | . . . . . Special Weapon . | . . . . . Impact Weapon 1 | . . . 1 . Slashing Weapon . | . . . . . Piercing Weapon . | . . . . . Special Melee Weapon . | . . . . . Unidentified Prototypes 2 | . . . . 2 Parts Lost 13 | . . . 2 11 Power 2 | . . . 1 1 Propulsion 8 | . . . 1 7 Utility 2 | . . . . 2 Weapon 1 | . . . . 1 Highest Loss Streak 8 | . . . 1 8 To Critical Strikes . | . . . . . Average Slot Usage (%) 76 | . 96 92 84 33 Engine 9 | . 14 14 10 2 Wheel 14 | . 28 21 13 . Flight 8 | . . . 12 15 Device 14 | . 12 14 21 5 Storage 8 | . 14 14 7 . Ballistic Gun 17 | . 25 28 16 3 Impact Weapon 1 | . . . 2 3 Naked Turns 38 | . . . . 38 Heaviest Build 18 | 13 15 14 18 13 Greatest Support 26 | 26 26 26 26 24 Greatest Overweight (x) 5 | . 3 1 5 1 Average Overweight (x) . | . . . . . Largest Inventory Capacity 8 | 8 8 8 8 5 Average Capacity 6 | 7 8 8 7 5 Most Carried 7 | 1 3 3 7 4 Average Carried 2 | . 1 3 3 . Final Capacity 8 | 8 8 8 5 5 Final Carried 5 | 1 3 3 5 . Class Distribution -------------------- 88% | Mutant 6% | Scavenger-Mutant 4% | Scavenger-Sprinter Dominant Class ---------------- Mutant | -10/Materials Mutant | -10/Mines Mutant | -9/Materials Mutant | -8/Materials Resources | -11 -10 -10 -9 -8 ----------- Run | Yrd Mat Min Mat Mat Matter Collected 639 | 223 . . 326 90 Remotely . | . . . . . Salvage Created 525 | 15 . . 215 295 Parts 31 | 1 . . 16 14 Haulers Intercepted . | . . . . . Recyclers Shooed 1 | . . . . 1 Parts Field Recycled . | . . . . . Retrieved Matter . | . . . . . Parts Self-Destructed . | . . . . . Prevented . | . . . . . Kills | -11 -10 -10 -9 -8 ------- Run | Yrd Mat Min Mat Mat Combat Hostiles Destroyed 17 | . . . 8 9 Melee 3 | . . . . 3 Guns 12 | . . . 8 4 Classes Destroyed 6 | 1 . . 3 2 Tunneler 1 | 1 . . . . Recycler 1 | . . . . 1 Watcher 3 | . . . 2 1 Swarmer 13 | . . . 6 7 Grunt 3 | . . . 2 1 Sentry 1 | . . . . 1 Best Kill Streak 7 | 1 . . 3 7 Combat Bots Only 6 | . . . 3 6 Max Kills in Single Turn 2 | 1 . . 2 1 Gunslinging 1 | . . . 1 . Exploded . | . . . . . Melee 1 | . . . . 1 Uniques/NPCs Destroyed . | . . . . . Combat | -11 -10 -10 -9 -8 -------- Run | Yrd Mat Min Mat Mat Hostile Shots Fired 199 | . 5 . 71 123 Missed 66 | . 2 . 27 37 Damage Taken 1401 | . 24 . 425 952 Core 713 | . 16 . 141 556 Absorbed by Shields . | . . . . . Core Remaining (%) 85 | 100 . 93 64 . Volleys Fired 56 | 6 . . 26 24 Largest 2 | 2 . . 2 1 Hottest 61 | 40 . . 40 61 Shots Fired 88 | 12 . . 52 24 Gun 88 | 12 . . 52 24 Cannon . | . . . . . Launcher . | . . . . . Special . | . . . . . Kinetic 87 | 12 . . 52 23 Thermal 1 | . . . . 1 Explosive . | . . . . . Electromagnetic . | . . . . . Robot Hit Streak 9 | 2 . . 8 9 Robot Miss Streak 3 | 2 . . 3 3 Penetration Max . | . . . . . Secondary Targets 2 | . . . 2 . Max Gunslinging Chain 1 | . . . 1 . Shots Hit Robots 67 | 6 . . 35 26 Core Hits 26 | 2 1 . 12 11 Critical Kills 1 | . . . . 1 Critical Parts Destroyed 3 | . . . . 3 Critical Strikes 4 | . . . . 4 Smash 4 | . . . . 4 Melee Attacks 19 | . . . 3 16 Impact 19 | . . . 3 16 Slashing . | . . . . . Piercing . | . . . . . Sneak Attacks . | . . . . . Combat Hostiles . | . . . . . Follow-up Attacks . | . . . . . Damage Inflicted 1017 | 48 2 . 422 545 Guns 531 | 48 . . 329 154 Cannons . | . . . . . Explosions . | . . . . . Melee 484 | . . . 93 391 Ramming 2 | . 2 . . . Kinetic 511 | 48 . . 329 134 Thermal 20 | . . . . 20 Explosive . | . . . . . Electromagnetic . | . . . . . Impact 484 | . . . 93 391 Slashing . | . . . . . Piercing . | . . . . . Highest Corruption . | . . . . . Average Corruption . | . . . . . Corruption Purged . | . . . . . Corruption Blocked . | . . . . . Overload Shots . | . . . . . Overflow Damage 195 | . . . 33 162 Projectiles . | . . . . . Explosions . | . . . . . Melee 195 | . . . 33 162 Knockbacks 2 | . . . . 2 Impact 2 | . . . . 2 Kinetic . | . . . . . Secondary . | . . . . . Self-Inflicted Damage 1 | . 1 . . . Shots . | . . . . . Rammed 1 | . 1 . . . Targets Rammed 1 | . 1 . . . Kicked . | . . . . . Crushed . | . . . . . Highest Temperature 9 | . . . 4 9 Average Temperature 3 | . . . 2 5 Received Heat Transfer 378 | . . . 99 279 Siege Activations . | . . . . . Robots Corrupted . | . . . . . Combat Hostiles . | . . . . . Parts Fried 6 | . . . 2 4 Impact Corruptions 8 | . . . 2 6 Robots Melted . | . . . . . Combat Hostiles . | . . . . . Parts Melted . | . . . . . Heat Transferred 37 | . . . . 37 Parts Sabotaged . | . . . . . Parts Stolen . | . . . . . Parts Stripped . | . . . . . Power Chain Reactions . | . . . . . Alert | -11 -10 -10 -9 -8 ------- Run | Yrd Mat Min Mat Mat Peak Influence 383 | 5 17 36 222 383 Initial 46 | . 3 6 13 46 Average 76 | 1 10 13 81 194 Maximum Alert Level 1 | . . . 1 1 Low Security (%) 90 | 100 100 100 95 62 Level 1 9 | . . . 4 37 Level 2 . | . . . . . Level 3 . | . . . . . Level 4 . | . . . . . Level 5 . | . . . . . High Security . | . . . . . Max Security . | . . . . . Squads Dispatched 2 | . . . 1 1 Investigation . | . . . . . Extermination . | . . . . . Reinforcement 2 | . . . 1 1 Assault . | . . . . . Garrison . | . . . . . Intercept . | . . . . . Searches Triggered . | . . . . . Construction Impeded . | . . . . . Haulers Reinforced . | . . . . . Active Scanning Responses . | . . . . . Cargo Convoy Interrupts . | . . . . . Stealth | -11 -10 -10 -9 -8 --------- Run | Yrd Mat Min Mat Mat Distress Signals 3 | . 1 . 2 . Communications Jammed . | . . . . . Distress Signals . | . . . . . Times Spotted 65 | . 5 1 30 29 Peak Tracking Total 12 | . 6 2 7 12 Tactical Retreats 12 | . . 1 9 2 Traps | -11 -10 -10 -9 -8 ------- Run | Yrd Mat Min Mat Mat Traps Triggered 3 | . 3 . . . Indirectly . | . . . . . Trap Hack Attempts . | . . . . . Triggered . | . . . . . Disarmed . | . . . . . Reprogrammed . | . . . . . Reused . | . . . . . Traps Extracted . | . . . . . Installed . | . . . . . Triggered . | . . . . . Machines | -11 -10 -10 -9 -8 ---------- Run | Yrd Mat Min Mat Mat Machines Disabled . | . . . . . Max in Single Turn . | . . . . . Machines Repaired . | . . . . . Machines Dismantled . | . . . . . Machines Sabotaged . | . . . . . Overloaded Fab Kills . | . . . . . Hacking | -11 -10 -10 -9 -8 --------- Run | Yrd Mat Min Mat Mat Machines Accessed 5 | . 1 . 1 3 Terminals 5 | . 1 . 1 3 Fabricators . | . . . . . Repair Stations . | . . . . . Recycling Units . | . . . . . Scanalyzers . | . . . . . Garrison Access . | . . . . . Total Hacks 11 | . 2 . 1 8 Successful 6 | . 1 . 1 4 Failed 5 | . 1 . . 4 Catastrophic 1 | . 1 . . . Database Lockouts . | . . . . . Manual 5 | . 1 . . 4 Terminals 11 | . 2 . 1 8 Fabricators . | . . . . . Repair Stations . | . . . . . Recycling Units . | . . . . . Scanalyzers . | . . . . . Garrison Access . | . . . . . Terminal Hacks 5 | . 1 . 1 3 Emergency Access Points 2 | . . . 1 1 Hauler Manifests 1 | . 1 . . . Zone Layout 2 | . . . . 2 Fabricator Hacks . | . . . . . Repair Station Hacks . | . . . . . Recycling Unit Hacks . | . . . . . Scanalyzer . | . . . . . Garrison Access Hacks . | . . . . . Unauthorized Hacks 1 | . . . . 1 Terminals 1 | . . . . 1 Assimilate 1 | . . . . 1 Fabricators . | . . . . . Repair Stations . | . . . . . Recycling Units . | . . . . . Scanalyzers . | . . . . . Garrison Access . | . . . . . Data Cores Recovered . | . . . . . Used . | . . . . . Hacking Detections 4 | . 1 . 1 2 Full Trace Events . | . . . . . Feedback Events . | . . . . . Feedback Blocked . | . . . . . Robot Schematics Acquired . | . . . . . Robots Built . | . . . . . Authchips . | . . . . . Time . | . . . . . Total Robot Build Rating . | . . . . . Part Schematics Acquired . | . . . . . Parts Built . | . . . . . Authchips . | . . . . . Time . | . . . . . Total Part Build Rating . | . . . . . Parts Repaired . | . . . . . Time . | . . . . . Parts Recycled . | . . . . . Recycled Matter . | . . . . . Retrieved Matter . | . . . . . Retrieved Components . | . . . . . Parts Scanalyzed . | . . . . . Part Schematics Acquired . | . . . . . Parts Damaged . | . . . . . Bothacking | -11 -10 -10 -9 -8 ------------ Run | Yrd Mat Min Mat Mat Used RIF Installer . | . . . . . Robots Hacked . | . . . . . Non-combat . | . . . . . Combat . | . . . . . Robot Hacks Applied . | . . . . . Relay Couplers Released . | . . . . . Fabnet Peak Effective % . | . . . . . Robots Rewired . | . . . . . Allies Hacked . | . . . . . Hacks Repelled . | . . . . . Allies | -11 -10 -10 -9 -8 -------- Run | Yrd Mat Min Mat Mat Total Allies . | . . . . . Largest Group . | . . . . . Highest-Rated Group . | . . . . . Highest-Rated Ally . | . . . . . Total Orders . | . . . . . Ally Attacks . | . . . . . Total Damage . | . . . . . Kills . | . . . . . Allies Corrupted . | . . . . . Allies Melted . | . . . . . Intel | -11 -10 -10 -9 -8 ------- Run | Yrd Mat Min Mat Mat Robot Analysis Total . | . . . . . Derelict Logs Recovered . | . . . . . Drone Launches . | . . . . . Drone Recoveries . | . . . . . Exploration | -11 -10 -10 -9 -8 ------------- Run | Yrd Mat Min Mat Mat Turns Passed 1284 | 97 245 196 464 282 Spaces Moved 1238 | 70 225 205 332 406 Core 112 | 4 2 . 2 104 Treads . | . . . . . Legs . | . . . . . Wheels 675 | 66 223 205 181 . Hover 28 | . . . . 28 Flight 423 | . . . 149 274 Fastest Speed 28 | 50 80 90 34 28 Average Speed 71 | 88 90 92 82 37 Slowest Speed 360 | 100 200 95 360 120 Overloaded Moves . | . . . . . Propulsion Burnouts . | . . . . . Robots Hopped 2 | . . . 1 1 Cave-ins Triggered . | . . . . . Exploration Rate (%) 32 | 4 37 50 33 39 Regions Visited 4 Branch Regions 1 Pre-discovered Areas . | . . . . . Known Exits Taken . | . . . . . Unknown Exits Taken 4 | 1 1 1 1 . Scrap Searched . | . . . . . Spaces Dug . | . . . . . Terrain Destroyed . | . . . . . Melee . | . . . . . Projectile . | . . . . . AOE . | . . . . . Terrain Rammed . | . . . . . Walls Destroyed . | . . . . . Machines Disabled . | . . . . . Actions | -11 -10 -10 -9 -8 --------- Run | Yrd Mat Min Mat Mat Total 1514 | 90 262 212 469 481 Wait 143 | 8 27 6 79 23 Move 1230 | 69 224 204 329 404 Hop 2 | . . . 1 1 Pick Up 6 | . 1 . 5 . Fast Attach 29 | 6 8 1 6 8 Attach 7 | . . . 2 5 Detach 4 | . 1 . 3 . Swap 7 | 1 . . 6 . Drop 10 | . . 1 9 . Fire 56 | 6 . . 26 24 Melee 19 | . . . 3 16 Ram 1 | . 1 . . . Kick . | . . . . . Crush . | . . . . . Escape Stasis . | . . . . . Rewire . | . . . . . Trap . | . . . . . Miscellaneous . | . . . . . Route ------- -11/Scrapyard -10/Materials (discovered 2 exits: [*Min x2]) -10/Mines (discovered 2 exits: *Mat x2) -9/Materials -8/Materials History --------- Turn | Location | Event 17 | -11/Scrapyard | Discovered new exit (range 16) 98 | -11/Scrapyard | Entered Materials 300 | -10/Materials | Build established: Mutant 328 | -10/Materials | Discovered new exit (range 12) 329 | -10/Materials | Discovered new exit (range 6) 343 | -10/Materials | Entered Mines 349 | -10/Mines | Met a Derelict bent on vengeance 426 | -10/Mines | Discovered new exit (range 7) 529 | -10/Mines | Discovered new exit (range 12) 539 | -10/Mines | Entered Materials 539 | -9/Materials | Evolved 2 slots: Propulsion x1, Utility x1 1001 | -9/Materials | Discovered new exit (range 7) 1003 | -9/Materials | Entered another Materials area 1003 | -8/Materials | Evolved 2 slots: Propulsion x2 1118 | -8/Materials | Core integrity fell below 50% 1120 | -8/Materials | Lost 8 parts (1p5n2u) 1205 | -8/Materials | Core integrity fell below 20% 1211 | -8/Materials | Released all parts (4) 1285 | -8/Materials | Destroyed by G-47 Trooper with Particle Gun Last Messages --------------- 01202_ Acquired Flight Unit. 01204_ S-10 Pest destroyed. 01205_ Flight Unit destroyed. 01205_ K-01 Serf collects debris. 01206_ Acquired Lgt. Assault Rifle. 01208_ Acquired Lgt. Ion Engine. 01208_ Flight Unit destroyed. 01211_ Released Lgt. Assault Rifle. 01211_ Released VTOL Module. 01211_ Released Lgt. Assault Rifle. 01211_ Released Lgt. Ion Engine. 01225_ K-01 Serf cleans the Fusion Modulator. 01249_ Acquired Prototype Energy Gun. 01249_ Identified Adv. Beam Rifle. 01251_ K-01 Serf cleans the Terminal. 01254_ K-01 Serf collects debris. 01268_ Acquired Prototype Hover Unit. 01268_ Identified Aerolev Unit. 01270_ Acquired Aerolev Unit. 01285_ Critical hit (Burn: +37). Map ----- +----------------------------------------------------+ | ????????????????????# + + ! + | | ????????????????????# # ##+########### # # | | ????????????????????### # ! #?????# ####+### | | ??????????????????????# + #???### #### | | ??????????????????????# # """ #???# ## | | ??????????????????????# # """ ##### ## | | ??????????????????????# # """ + ] | | ??????????????????????# # ##### ##+###### | | ??????????????????????# ########???# ## # | | ??????????????????????# #?########?###+####""" # | | ??????????????????????# #?# #?# #"R # | | ??????????????????????# #?# #?# #""" # | | ???????########?????### ### """ #?# """ # # | | ???????# """ #?????# g # """ #?# ""???# ! ??? | | ???????# """ ####### # """ #?# ""???######?? | | ???????# """ + gT + #?# ??????????? | | ???????# ####### ########?####??????????? | | ???????# #?????# #??????????????????????? | | ???????# #?????##g ##??????????????????????? | | ???????########??????# g#???????????????????????? | | ?????????????????????# g#???######??????????????? | | ?????????????????????# #???# #########??????? | | ????????????????????## ##??# # ???????? | | ????????????????????# #??# # ######???? | | ????????????????????# #### # #???? | | ????????????????????# @ + # ##### | | ????????????????????# ## # # | | ????????????????????# ## # + ##### | | ???????????????########+####+# ###### #???? | | ???????????????# # #???####+####### | | ???????????????# """ """ """ ######???# T + + | | ???????????????# """ """ """ #????????# """ ### | | ???????????????# """ """ """ #????????# """ #?# | | ???????????????# #????????# """ #?# | | ???????????????# #????????# #?# | | ???????????????###############????????#########?## | | | | | | | | | | | | | | | | | | | | | | | | | | | | | +----------------------------------------------------+ Best States ------------- Heat Dissipation 31 Energy Generation 12 Energy Capacity 265 Matter Stores 300 Matter Capacity 300 Sight Range 16 Robot Scan Range 14 Terrain Scan Density 10 ECM Strength 1 Evasion (%) 64 Item Schematics ----------------- None Robot Schematics ------------------ None Fabricated ------------ Nothing Alien Tech Used ----------------- None Achievements -------------- None Challenges ------------ None Game ------ Seed HugeLargeSubcomponent Manual? 0 Play Time 00:22:46 Cumulative 13.6 hours Start 2024.07.04 @ 22:51:13 End 2024.07.04 @ 23:20:40 Sessions 1 Manual Loads 0 Difficulty Rogue Special Mode None Game No. 14 Rogue 14 Adventurer 0 Explorer 0 Win Type - Total 0 Types 0/0/0/0/0/0/0/0/0 Lore% 15 Gallery% 19 Achievement% 17 Wizard Run 0 Options --------- Layout 0 ASCII 0 Keyboard 0 Movement Mouse Keybinds 0 Fullscreen 2 Font 24/Smallcaps Map View 76x50 Zoom Use 0% Tactical HUD 1 Map Filters NONE Filters NONE Steam 1 RUN: 021da56d-da9d-42c8-888a-2ee03827c2f6